bitfinex/quotes_BTCUSD_20240906
["timestamp","ask_amount","ask_price","bid_price","bid_amount"]
[1725630475313,0.177626,56298.0,56294.0,0.177636]
[1725630475596,0.000815,56301.0,56295.0,0.1823]
[1725630475853,0.178434,56301.0,56295.0,0.537569]
[1725630476112,0.000815,56301.0,56296.0,0.355261]
[1725630476372,0.000815,56301.0,56295.0,0.1823]
[1725630476644,0.000815,56301.0,56291.0,0.355295]
[1725630476645,0.177624,56299.0,56291.0,0.355295]
[1725630476898,0.000815,56301.0,56297.0,0.177626]
[1725630477148,0.000815,56301.0,56296.0,0.355264]
[1725630477399,0.177621,56300.0,56296.0,0.177632]
[1725630477686,0.177648,56291.0,56290.0,0.2511]
[1725630477921,0.177676,56282.0,56281.0,0.00163]
[1725630478161,0.533029,56282.0,56281.0,0.00163]
[1725630478405,0.44425842,56296.0,56282.0,0.355352]
[1725630478645,0.44425842,56290.0,56281.0,0.00163]
[1725630478905,0.35531,56289.0,56281.0,0.00163]
[1725630479150,0.187,56300.0,56284.0,0.177668]
[1725630479387,0.177659,56288.0,56284.0,0.177668]
[1725630479639,0.355294,56292.0,56282.0,0.355353]
[1725630479879,0.000815,56301.0,56283.0,0.17551096]
[1725630480156,0.000815,56301.0,56288.0,0.355312]
[1725630480388,0.000815,56301.0,56282.0,0.4383]
[1725630480389,0.355242,56300.0,56282.0,0.4383]
[1725630480641,0.35526,56297.0,56283.0,0.17551096]
[1725630480875,0.177648,56291.0,56283.0,0.355346]
[1725630481116,0.000815,56301.0,56282.0,0.4383]
[1725630481340,0.177637,56295.0,56283.0,0.043993]
[1725630481569,0.177651,56290.0,56286.0,0.177662]
[1725630481833,0.355247,56299.0,56290.0,0.3553]
[1725630482096,0.000815,56301.0,56282.0,0.4383]
[1725630482097,0.355296,56292.0,56285.0,0.177665]
[1725630482323,0.355286,56293.0,56286.0,0.355326]
[1725630482557,0.000815,56301.0,56284.0,0.177669]
[1725630482826,0.000815,56301.0,56281.0,0.00163]
[1725630482827,0.44425842,56289.0,56281.0,0.00163]
[1725630483097,0.18,56292.0,56281.0,0.00163]
[1725630483098,1.667035,56282.0,56281.0,0.00163]
[1725630483310,0.44425842,56260.0,56253.0,0.2467]
[1725630483539,0.533284,56255.0,56243.0,0.2467]
[1725630483765,0.177774,56251.0,56243.0,0.2467]
[1725630483990,1.244421,56251.0,56234.0,0.77320515]
[1725630484214,1.59997,56251.0,56234.0,0.77320515]
[1725630484449,1.244421,56251.0,56234.0,0.77320515]
[1725630484702,1.244421,56251.0,56234.0,1.12885815]
[1725630484703,0.888872,56251.0,56234.0,1.12885815]
[1725630484935,0.58783034,56251.0,56234.0,0.2467]
[1725630485152,0.58783034,56251.0,56233.0,0.00164]
[1725630485153,2.74462934,56251.0,56233.0,0.00164]
[1725630485390,2.42420598,56251.0,56233.0,0.00164]
[1725630485626,2.56865025,56251.0,56233.0,0.00164]
[1725630485836,0.708074,56251.0,56233.0,0.00164]
[1725630486058,0.708074,56251.0,56235.0,0.2325]
[1725630486059,0.2957,56251.0,56235.0,0.2325]
[1725630486284,0.473474,56251.0,56235.0,0.2325]
[1725630486784,0.44425842,56255.0,56236.0,0.88570049]
[1725630486979,0.1862,56258.0,56246.0,0.177789]
[1725630487200,0.59960107,56261.0,56251.0,0.224]
[1725630487423,0.15534265,56261.0,56251.0,0.224]
[1725630487675,0.177757,56257.0,56245.0,0.229132]
[1725630487907,0.44425842,56254.0,56245.0,0.229132]
[1725630488388,0.15534265,56261.0,56247.0,0.355568]
[1725630488638,0.15534265,56261.0,56253.0,0.177767]
[1725630488859,0.15534265,56261.0,56245.0,0.229132]
[1725630489151,0.15534265,56261.0,56247.0,0.355572]
[1725630489382,0.15534265,56261.0,56260.0,0.177746]
[1725630489848,0.15534265,56261.0,56260.0,0.766838]
[1725630490073,0.15534265,56261.0,56260.0,1.84223296]
[1725630490573,0.15534265,56261.0,56260.0,1.13124896]
[1725630490790,0.15534265,56261.0,56260.0,1.48674096]
[1725630491022,0.44425842,56282.0,56260.0,0.4225]
[1725630491247,0.52650515,56277.0,56267.0,0.177723]
[1725630491472,0.177703,56274.0,56260.0,0.4225]
[1725630491734,0.2294,56276.0,56260.0,0.2336]
[1725630491970,0.06706007,56275.0,56260.0,0.2336]
[1725630492213,0.06706007,56275.0,56255.0,0.17776]
[1725630492214,0.12294,56275.0,56255.0,0.17776]
[1725630492438,0.1,56275.0,56254.0,0.1843]
[1725630492666,0.1,56275.0,56255.0,0.17776]
[1725630492899,0.14412007,56275.0,56254.0,0.1843]
[1725630493112,0.02785592,56277.0,56257.0,0.44425842]
[1725630493342,0.2444,56285.0,56264.0,0.355466]
[1725630493563,0.177699,56275.0,56263.0,0.2347]
[1725630493789,0.01,56282.0,56263.0,0.2347]
[1725630494018,0.355358,56282.0,56267.0,0.177722]
[1725630494303,0.1866,56289.0,56263.0,0.2347]
[1725630494545,0.2248,56276.0,56258.0,0.2262]
[1725630494777,0.177727,56266.0,56258.0,0.2262]
[1725630495008,0.02348,56275.0,56258.0,0.2262]
[1725630495261,0.1,56282.0,56258.0,0.2262]
[1725630495501,0.11,56282.0,56258.0,0.2262]
[1725630495728,0.35548,56262.0,56250.0,0.00164]
[1725630495965,0.888872,56251.0,56250.0,0.00164]
[1725630496633,1.244421,56251.0,56250.0,0.00164]
[1725630496882,1.322372,56251.0,56250.0,0.00164]
[1725630497115,1.70584021,56251.0,56250.0,0.00164]
[1725630497340,1.75038898,56251.0,56250.0,0.00164]
[1725630497603,1.80584021,56251.0,56250.0,0.00164]
[1725630497824,2.54791821,56251.0,56250.0,0.00164]
[1725630498052,1.80584021,56251.0,56250.0,0.00164]
[1725630498287,1.777921,56251.0,56250.0,0.00164]
[1725630498507,0.827523,56251.0,56250.0,0.00164]
[1725630498750,1.538621,56251.0,56250.0,0.00164]
[1725630499242,0.35552,56256.0,56250.0,0.00164]
[1725630499550,0.177774,56251.0,56250.0,0.00164]
[1725630499803,0.533323,56251.0,56250.0,0.00164]
[1725630500045,1.2621984,56251.0,56250.0,0.00164]
[1725630500322,0.633323,56251.0,56250.0,0.00164]
[1725630500556,0.355554,56251.0,56239.0,0.21826877]
[1725630500780,0.177772,56252.0,56241.0,0.355607]
[1725630501029,0.1,56257.0,56239.0,0.21826877]
[1725630501271,0.0555506,56256.0,56227.0,0.1917]
[1725630501554,0.0555506,56256.0,56237.0,0.52650515]
[1725630501555,0.0455506,56256.0,56237.0,0.52650515]
[1725630501800,0.0455506,56256.0,56229.0,0.355685]
[1725630501801,0.355565,56249.0,56229.0,0.355686]
[1725630502043,0.35555,56251.0,56233.0,0.62140938]
[1725630502290,0.1,56257.0,56245.0,0.1993]
[1725630502529,0.62650515,56262.0,56245.0,0.1993]
[1725630502773,0.32275963,56262.0,56245.0,0.1993]
[1725630502997,0.32275963,56262.0,56233.0,0.44589842]
[1725630502998,0.1839,56248.0,56233.0,0.00164]
[1725630503244,0.355606,56242.0,56237.0,0.52650515]
[1725630503518,0.44425842,56251.0,56233.0,0.00164]
[1725630503519,0.2451,56247.0,56233.0,0.00164]
[1725630503785,0.177828,56234.0,56233.0,0.00164]
[1725630504042,0.35564,56237.0,56233.0,0.00164]
[1725630504282,0.355619,56240.0,56233.0,0.00164]
[1725630504537,0.177828,56234.0,56233.0,0.00164]
[1725630504790,1.244796,56234.0,56233.0,0.00164]
[1725630505518,1.600452,56234.0,56233.0,0.00164]
[1725630505737,1.244796,56234.0,56233.0,0.00164]
[1725630506238,0.88914,56234.0,56233.0,0.00164]
[1725630506528,1.57619842,56234.0,56233.0,0.00164]
[1725630506778,2.37751042,56234.0,56233.0,0.00164]
[1725630507272,1.78905442,56234.0,56233.0,0.00164]
[1725630507750,1.244796,56234.0,56233.0,0.00164]
[1725630508247,1.68905442,56234.0,56233.0,0.00164]
[1725630508473,1.244796,56234.0,56233.0,0.00164]
[1725630508724,0.88914,56234.0,56233.0,0.00164]
[1725630508948,0.355639,56237.0,56233.0,0.00164]
[1725630509175,0.177825,56235.0,56234.0,0.2338]
[1725630509443,0.44425842,56252.0,56234.0,0.2338]
[1725630509444,0.177823,56236.0,56234.0,0.2338]
[1725630509702,0.2017,56254.0,56234.0,0.2338]
[1725630509703,0.533475,56235.0,56234.0,0.2338]
[1725630509923,0.889125,56235.0,56234.0,0.2338]
[1725630510146,1.244775,56235.0,56234.0,0.2338]
[1725630510610,0.177825,56235.0,56234.0,0.2338]
[1725630511049,0.533475,56235.0,56234.0,0.2338]
[1725630511309,0.889125,56235.0,56234.0,0.2338]
[1725630511809,0.177825,56235.0,56234.0,0.2338]
[1725630512296,0.533475,56235.0,56234.0,0.2338]
[1725630512817,0.44425842,56253.0,56234.0,0.257508]
[1725630513042,0.44425842,56253.0,56234.0,0.2338]
[1725630513043,0.533475,56235.0,56234.0,0.2338]
[1725630513264,0.177825,56235.0,56234.0,0.235432]
[1725630513515,0.533475,56235.0,56234.0,0.235432]
[1725630513729,0.355623,56240.0,56234.0,0.235432]
[1725630513956,0.17782,56237.0,56234.0,0.235432]
[1725630514183,0.533475,56235.0,56234.0,0.001632]
[1725630514402,0.889125,56235.0,56234.0,0.001632]
[1725630514926,1.244775,56235.0,56234.0,0.001632]
[1725630515146,1.68903342,56235.0,56234.0,0.001632]
[1725630515602,2.04468342,56235.0,56234.0,0.001632]
[1725630515830,1.76354867,56235.0,56234.0,0.001632]
[1725630516072,1.68903342,56235.0,56234.0,0.001632]
[1725630516310,1.244775,56235.0,56234.0,0.001632]
[1725630518634,0.889125,56235.0,56234.0,0.001632]
[1725630519333,0.01123415,56247.0,56234.0,0.442632]
[1725630519614,0.01123415,56247.0,56246.0,0.78197]
[1725630519833,0.2282,56271.0,56246.0,0.78197]
[1725630519834,0.355472,56264.0,56254.0,0.355527]
[1725630520075,0.70426315,56256.0,56255.0,0.2424]
[1725630520291,0.533275,56256.0,56255.0,0.2424]
[1725630520548,0.177758,56256.0,56255.0,0.2424]
[1725630520775,0.177758,56256.0,56247.0,0.355572]
[1725630520776,0.0177758,56256.0,56247.0,0.2424]
[1725630520990,0.0177758,56256.0,56236.0,0.2452]
[1725630520991,0.533455,56237.0,56236.0,0.2452]
[1725630521449,0.889092,56237.0,56236.0,0.2452]
[1725630521916,0.533475,56235.0,56233.0,0.00164]
[1725630522214,1.244775,56235.0,56233.0,0.00164]
[1725630522694,1.600425,56235.0,56233.0,0.00164]
[1725630523200,1.600425,56235.0,56206.0,0.2348]
[1725630523201,1.69925342,56225.0,56206.0,0.2348]
[1725630523478,2.4838318,56225.0,56206.0,0.2348]
[1725630523681,2.3875178,56225.0,56206.0,0.2348]
[1725630523914,1.36214638,56225.0,56206.0,0.2348]
[1725630524365,1.36214638,56225.0,56208.0,0.355815]
[1725630524605,1.36214638,56225.0,56207.0,0.355823]
[1725630524606,0.90643338,56225.0,56207.0,0.355823]
[1725630524861,0.44425842,56244.0,56224.0,0.23534]
[1725630525086,0.355662,56234.0,56225.0,0.042204]
[1725630525313,0.1852,56246.0,56224.0,0.23534]
[1725630525314,0.01636061,56233.0,56224.0,0.23534]
[1725630525537,0.177826,56235.0,56229.0,0.177842]
[1725630525763,0.35561,56242.0,56224.0,0.23534]
[1725630525996,0.177848,56228.0,56224.0,0.23534]
[1725630526232,0.355693,56229.0,56224.0,0.23534]
[1725630526461,0.44425842,56243.0,56224.0,0.2953302]
[1725630526710,0.44425842,56237.0,56224.0,0.23534]
[1725630526930,0.1,56242.0,56224.0,0.00164]
[1725630526931,0.889282,56225.0,56224.0,0.00164]
[1725630527156,1.61785938,56225.0,56224.0,0.00164]
[1725630527438,1.75085938,56225.0,56224.0,0.00164]
[1725630527701,2.31122538,56225.0,56224.0,0.00164]
[1725630527915,1.71785938,56225.0,56224.0,0.00164]
[1725630528583,1.74574022,56225.0,56224.0,0.00164]
[1725630528824,1.87476022,56225.0,56224.0,0.00164]
[1725630529074,1.39002722,56225.0,56224.0,0.00164]
[1725630529308,0.90643338,56225.0,56224.0,0.00164]
[1725630529602,0.455657,56234.0,56224.0,0.00164]
[1725630529836,0.04494988,56242.0,56224.0,0.00164]
[1725630529837,0.355676,56231.0,56225.0,0.177856]
[1725630530074,0.355676,56231.0,56224.0,0.00164]
[1725630530075,0.198,56245.0,56224.0,0.00164]
[1725630530314,0.177831,56233.0,56224.0,0.00164]
[1725630530577,0.355575,56247.0,56224.0,0.00164]
[1725630530578,0.177829,56234.0,56225.0,0.355713]
[1725630530840,0.177812,56239.0,56225.0,0.0776353]
[1725630531077,0.44425842,56248.0,56228.0,0.177846]
[1725630531309,0.44425842,56243.0,56226.0,0.2408]
[1725630531564,0.355679,56231.0,56226.0,0.418653]
[1725630531821,0.355651,56235.0,56227.0,0.3557]
[1725630532079,0.177845,56229.0,56227.0,0.03508458]
[1725630532332,0.177838,56231.0,56227.0,0.17785]
[1725630532584,0.355615,56241.0,56230.0,0.355679]
[1725630532826,0.177822,56236.0,56232.0,0.177833]
[1725630533055,0.177825,56235.0,56231.0,0.177836]
[1725630533292,0.177825,56235.0,56226.0,0.2408]
[1725630533293,0.44425842,56243.0,56226.0,0.2408]
[1725630533576,0.17785,56227.0,56226.0,0.2408]
[1725630533818,0.19468505,56227.0,56226.0,0.2408]
[1725630534053,0.55038505,56227.0,56226.0,0.2408]
[1725630534289,0.90608505,56227.0,56226.0,0.2408]
[1725630534765,0.55038505,56227.0,56226.0,0.2408]
[1725630535071,0.177856,56225.0,56224.0,0.00164]
[1725630535317,0.90643338,56225.0,56224.0,0.00164]
[1725630535598,0.889282,56225.0,56224.0,0.00164]
[1725630535859,1.72105364,56225.0,56224.0,1e-06]
[1725630536100,0.889662,56201.0,56200.0,0.00164]
[1725630536335,0.889662,56201.0,56185.0,0.74279915]
[1725630536336,0.17798,56186.0,56185.0,0.74279915]
[1725630536788,0.20130421,56186.0,56185.0,0.2267]
[1725630537025,0.55726421,56186.0,56185.0,0.2267]
[1725630537270,0.91322421,56186.0,56185.0,0.2267]
[1725630537515,0.55726421,56186.0,56185.0,0.2267]
[1725630537765,0.17798,56186.0,56185.0,0.2267]
[1725630538025,0.55726421,56186.0,56185.0,0.2267]
[1725630538266,0.91322421,56186.0,56185.0,0.2267]
[1725630538513,0.177999,56180.0,56179.0,0.2353]
[1725630538749,0.533997,56180.0,56179.0,0.2353]
[1725630539001,0.177996,56181.0,56179.0,0.2353]
[1725630539243,0.44425842,56194.0,56179.0,0.2353]
[1725630539244,0.52650515,56198.0,56185.0,0.177982]
[1725630539480,0.02237399,56197.0,56179.0,0.4133]
[1725630539729,0.02237399,56197.0,56182.0,0.177991]
[1725630539730,0.177979,56187.0,56182.0,0.177991]
[1725630540173,0.355935,56190.0,56180.0,0.355998]
[1725630540175,0.177979,56187.0,56180.0,0.355998]
[1725630540421,0.02237399,56197.0,56181.0,0.2294]
[1725630540681,0.177987,56184.0,56181.0,0.2294]
[1725630540943,0.177991,56183.0,56181.0,0.2294]
[1725630541178,0.04442584,56198.0,56181.0,0.2294]
[1725630541179,0.177987,56184.0,56181.0,0.2294]
[1725630541460,0.0237994,56183.0,56177.0,0.00164]
[1725630541731,0.534016,56178.0,56177.0,0.00164]
[1725630541973,1.27062949,56178.0,56177.0,0.00164]
[1725630543456,1.49942949,56178.0,56177.0,0.00164]
[1725630543686,1.5472752,56178.0,56177.0,0.00164]
[1725630543918,1.27062949,56178.0,56177.0,0.00164]
[1725630544161,0.55860749,56178.0,56177.0,0.00164]
[1725630544384,0.91461849,56178.0,56177.0,0.00164]
[1725630544608,1.27062949,56178.0,56177.0,0.00164]
[1725630545640,1.90204049,56178.0,56177.0,0.00164]
[1725630545879,0.712148,56168.0,56158.0,0.2248]
[1725630546111,1.27164273,56168.0,56159.0,0.52650515]
[1725630546374,1.27164273,56168.0,56158.0,0.2248]
[1725630547496,1.39464273,56168.0,56154.0,0.0110549]
[1725630547725,1.38364273,56168.0,56154.0,0.0110549]
[1725630547978,2.53448073,56168.0,56167.0,0.00264]
[1725630548205,2.30167473,56168.0,56167.0,0.00264]
[1725630548438,2.14770473,56168.0,56167.0,0.00164]
[1725630548697,2.50377873,56168.0,56167.0,0.00164]
[1725630548948,2.16170473,56168.0,56167.0,0.00264]
[1725630549183,2.09303873,56168.0,56167.0,0.00164]
[1725630549658,2.10703873,56168.0,56167.0,0.00264]
[1725630550184,1.73672828,56168.0,56167.0,0.00264]
[1725630550432,1.63364273,56168.0,56167.0,0.00264]
[1725630550693,0.01,56164.0,56154.0,0.0110549]
[1725630550931,2.89829773,56168.0,56154.0,0.0110549]
[1725630550932,2.08448789,56155.0,56154.0,0.0110549]
[1725630551163,2.68524489,56155.0,56154.0,0.0110549]
[1725630551402,2.99414489,56155.0,56154.0,9e-07]
[1725630551652,2.63798789,56155.0,56154.0,9e-07]
[1725630552132,3.01614489,56155.0,56154.0,9e-07]
[1725630552366,1.33487042,56141.0,56131.0,0.2341]
[1725630552608,1.33487042,56141.0,56105.0,0.44625842]
[1725630552609,0.178091,56151.0,56142.0,0.197]
[1725630552916,0.02950562,56150.0,56143.0,0.2398]
[1725630553135,0.178113,56144.0,56143.0,0.2398]
[1725630553388,0.02950562,56150.0,56143.0,0.2398]
[1725630553636,0.014,56155.0,56143.0,0.2398]
[1725630553868,0.178113,56144.0,56143.0,0.2398]
[1725630554115,0.014,56155.0,56143.0,0.283493]
[1725630554356,0.04310912,56155.0,56143.0,0.283493]
[1725630554598,0.10128211,56157.0,56149.0,0.356189]
[1725630554828,0.10128211,56157.0,56148.0,0.2382]
[1725630554829,0.1297569,56157.0,56156.0,0.178075]
[1725630555065,0.1297569,56157.0,56148.0,0.2382]
[1725630555329,0.02855408,56156.0,56148.0,0.2382]
[1725630555598,0.178097,56149.0,56148.0,0.2382]
[1725630555842,0.56348042,56149.0,56148.0,0.2382]
[1725630556308,0.20728542,56149.0,56148.0,0.2382]
[1725630556540,0.91967542,56149.0,56148.0,0.2382]
[1725630556773,0.006,56155.0,56148.0,0.5944]
[1725630557041,0.178097,56149.0,56148.0,0.2382]
[1725630557274,0.178097,56149.0,56142.0,0.2373]
[1725630557275,0.178116,56143.0,56142.0,0.2373]
[1725630557508,0.5644891,56143.0,56142.0,0.2373]
[1725630557775,0.178122,56141.0,56140.0,0.00013]
[1725630558019,1.386154,56141.0,56140.0,0.00013]
[1725630558286,1.742399,56141.0,56140.0,0.00013]
[1725630559294,1.964699,56141.0,56140.0,1e-06]
[1725630559534,2.776049,56141.0,56140.0,1e-06]
[1725630559769,2.690177,56141.0,56140.0,1e-06]
[1725630560011,3.068422,56141.0,56140.0,1e-06]
[1725630560287,3.10551086,56141.0,56140.0,1e-06]
[1725630560550,0.31575737,56141.0,56122.0,0.00164]
[1725630560822,0.03188538,56140.0,56132.0,0.2298]
[1725630561076,0.17814,56136.0,56132.0,0.407951]
[1725630561335,0.03148866,56136.0,56132.0,0.2298]
[1725630561607,0.014,56141.0,56140.0,0.001]
[1725630561842,0.548367,56141.0,56140.0,0.001]
[1725630562075,0.548367,56141.0,56132.0,0.2298]
[1725630562076,0.178141,56136.0,56132.0,0.2298]
[1725630562316,0.03045737,56141.0,56137.0,0.178134]
[1725630562317,0.20858137,56141.0,56137.0,0.178134]
[1725630562550,0.09872965,56149.0,56139.0,0.356258]
[1725630562551,0.356203,56148.0,56139.0,0.356258]
[1725630562793,0.09872965,56149.0,56139.0,0.356257]
[1725630562794,0.20808647,56147.0,56139.0,0.356257]
[1725630563048,0.178105,56147.0,56143.0,0.178113]
[1725630563310,0.356203,56148.0,56138.0,0.234]
[1725630563570,0.07555406,56148.0,56138.0,0.234]
[1725630563803,0.09872965,56149.0,56138.0,0.234]
[1725630563804,0.03006079,56147.0,56142.0,0.178118]
[1725630564052,0.367245,56141.0,56140.0,0.001]
[1725630564314,0.57582437,56141.0,56140.0,0.001]
[1725630564576,0.57582437,56141.0,56138.0,0.234]
[1725630564577,0.178129,56139.0,56138.0,0.234]
[1725630564840,0.534454,56132.0,56131.0,0.1894]
[1725630565122,0.01,56148.0,56131.0,0.1894]
[1725630565424,0.178108,56146.0,56132.0,0.23306259]
[1725630565613,0.03069534,56145.0,56133.0,0.04224626]
[1725630565869,0.03069534,56145.0,56139.0,0.2383]
[1725630566113,0.09455505,56161.0,56139.0,0.2383]
[1725630566371,0.09455505,56161.0,56138.0,0.001]
[1725630566372,0.890645,56139.0,56138.0,0.001]
[1725630566734,1.28767767,56139.0,56138.0,0.001]
[1725630566978,1.64593567,56139.0,56138.0,0.001]
[1725630567199,0.534529,56124.0,56123.0,0.2383]
[1725630567427,0.5676841,56124.0,56123.0,0.2383]
[1725630567905,0.5676841,56124.0,56122.0,0.00164]
[1725630567906,1.24726,56123.0,56122.0,0.00164]
[1725630568139,1.75985447,56123.0,56122.0,0.00164]
[1725630568373,1.73685447,56123.0,56122.0,0.00164]
[1725630568598,1.38049447,56123.0,56122.0,0.00164]
[1725630568834,1.02413447,56123.0,56122.0,0.00164]
[1725630569053,1.84775289,56123.0,56122.0,0.00164]
[1725630569288,2.20411289,56123.0,56122.0,0.00164]
[1725630569518,2.45991289,56123.0,56122.0,0.00164]
[1725630569746,2.45991289,56123.0,56100.0,0.1907]
[1725630569747,1.69178442,56111.0,56100.0,0.001]
[1725630569984,1.33552342,56100.0,56099.0,0.51054515]
[1725630570234,0.89128,56099.0,56098.0,0.0110549]
[1725630570473,1.28491731,56099.0,56098.0,0.0110549]
[1725630571617,1.67442931,56099.0,56098.0,0.0110549]
[1725630571880,1.52711731,56099.0,56098.0,0.0110549]
[1725630572132,1.52711731,56099.0,56083.0,0.00164]
[1725630572133,0.178272,56094.0,56083.0,0.00164]
[1725630572385,0.356569,56091.0,56083.0,0.00164]
[1725630572626,0.178301,56085.0,56083.0,0.00164]
[1725630572856,0.44425842,56096.0,56083.0,0.00164]
[1725630572857,0.03942966,56084.0,56083.0,0.00164]
[1725630573154,0.44425842,56095.0,56083.0,0.00164]
[1725630573379,0.03863492,56094.0,56083.0,0.00164]
[1725630573617,0.03871439,56094.0,56085.0,0.1921]
[1725630573837,0.21699139,56093.0,56085.0,0.1921]
[1725630574095,0.03871439,56093.0,56085.0,0.1921]
[1725630574321,0.178289,56089.0,56085.0,0.1921]
[1725630574578,0.0389528,56089.0,56085.0,0.1921]
[1725630574808,0.0389528,56088.0,56085.0,0.1921]
[1725630575269,0.0389528,56088.0,56087.0,0.178294]
[1725630575503,0.009,56093.0,56092.0,0.178278]
[1725630575787,0.52650515,56108.0,56094.0,0.1603]
[1725630576021,0.03672813,56107.0,56095.0,0.1645]
[1725630576261,0.03529858,56123.0,56111.0,0.3633]
[1725630576723,0.356397,56118.0,56111.0,0.3633]
[1725630576960,0.178207,56115.0,56111.0,0.3633]
[1725630577208,0.03482216,56114.0,56111.0,0.3633]
[1725630577429,0.01,56131.0,56111.0,0.3633]
[1725630577430,0.44425842,56135.0,56111.0,0.3633]
[1725630577653,0.44425842,56135.0,56112.0,0.356426]
[1725630577654,0.03323447,56128.0,56112.0,0.356426]
[1725630577891,0.03371072,56124.0,56111.0,0.3633]
[1725630578142,0.178197,56118.0,56112.0,0.178212]
[1725630578398,0.009,56114.0,56113.0,0.178211]
[1725630578635,0.009,56114.0,56113.0,1.051557]
[1725630578852,0.009,56114.0,56113.0,1.40798]
[1725630579078,0.03371072,56124.0,56113.0,0.1605]
[1725630579322,0.35638,56120.0,56113.0,0.1605]
[1725630579580,0.03426639,56119.0,56114.0,0.178207]
[1725630579799,0.03426639,56119.0,56113.0,0.1605]
[1725630580023,0.01,56124.0,56120.0,0.178189]
[1725630580257,0.01,56124.0,56123.0,0.17818]
[1725630580485,0.011,56124.0,56123.0,1.07055096]
[1725630580715,0.001,56124.0,56123.0,1.42691096]
[1725630580964,0.52650515,56141.0,56124.0,0.1688]
[1725630581178,0.53452,56125.0,56124.0,0.1688]
[1725630581418,0.56751636,56125.0,56124.0,0.1688]
[1725630581634,0.44425842,56144.0,56124.0,0.1688]
[1725630581879,0.44425842,56144.0,56127.0,0.35633]
[1725630581880,0.356287,56135.0,56127.0,0.35633]
[1725630582129,0.356287,56135.0,56123.0,0.2177]
[1725630582130,0.03148866,56143.0,56128.0,0.05556993]
[1725630582356,0.178134,56138.0,56123.0,0.2077]
[1725630582577,0.03148866,56143.0,56130.0,0.356313]
[1725630582807,0.03148866,56143.0,56126.0,0.1896]
[1725630583041,0.356239,56142.0,56130.0,0.356313]
[1725630583267,0.356228,56144.0,56127.0,0.17551096]
[1725630583555,0.03117132,56142.0,56128.0,0.0365111]
[1725630583797,0.000818,56154.0,56129.0,0.1972]
[1725630584044,0.03029873,56153.0,56149.0,0.1972]
[1725630584278,0.89047,56150.0,56149.0,0.1972]
[1725630584510,0.000818,56154.0,56153.0,0.534253]
[1725630584763,0.178901,56154.0,56149.0,0.1972]
[1725630584990,0.02871266,56153.0,56150.0,0.1622]
[1725630585206,0.02871266,56153.0,56150.0,0.340292]
[1725630585437,0.356182,56151.0,56150.0,0.1622]
[1725630585680,0.56314424,56151.0,56150.0,0.121366]
[1725630585910,0.000818,56154.0,56153.0,0.534253]
[1725630586155,0.000818,56154.0,56153.0,0.890422]
[1725630586403,0.000818,56154.0,56153.0,1.089022]
[1725630587098,0.000818,56154.0,56153.0,1.62070196]
[1725630587551,0.6342,56183.0,56169.0,0.192]
[1725630587552,0.52650515,56173.0,56169.0,0.192]
[1725630587777,0.17803,56170.0,56169.0,0.192]
[1725630588002,0.890152,56170.0,56169.0,0.192]
[1725630588230,0.534091,56170.0,56169.0,0.192]
[1725630588458,0.534091,56170.0,56159.0,0.356129]
[1725630588459,0.178053,56163.0,56160.0,0.196]
[1725630588691,0.178054,56163.0,56160.0,0.3644]
[1725630588934,0.02585914,56170.0,56160.0,0.3644]
[1725630589154,0.178059,56161.0,56160.0,0.3644]
[1725630589395,0.003,56170.0,56160.0,0.3644]
[1725630589622,0.178036,56169.0,56165.0,0.178046]
[1725630589867,0.356084,56167.0,56160.0,0.3644]
[1725630590105,0.003,56170.0,56160.0,0.3644]
[1725630590106,0.534178,56161.0,56160.0,0.3644]
[1725630590324,0.356101,56164.0,56160.0,0.3644]
[1725630590552,0.02704788,56163.0,56160.0,0.1684]
[1725630590818,0.356122,56161.0,56160.0,0.004]
[1725630591262,0.356061,56171.0,56160.0,0.007]
[1725630591266,0.356063,56170.0,56164.0,0.178049]
[1725630591492,0.356079,56168.0,56163.0,0.1645]
[1725630591723,0.07682841,56182.0,56163.0,0.1645]
[1725630591724,0.178045,56166.0,56163.0,0.1645]
[1725630591959,0.534148,56164.0,56163.0,0.1645]
[1725630592195,0.890297,56161.0,56160.0,0.012]
[1725630592427,0.534264,56152.0,56151.0,0.1603]
[1725630592658,0.91915266,56152.0,56151.0,0.1603]
[1725630592877,1.24677,56145.0,56144.0,0.1642]
[1725630593116,0.92037285,56145.0,56144.0,0.1642]
[1725630593573,0.56415285,56145.0,56144.0,0.1642]
[1725630593816,0.20793285,56145.0,56144.0,0.1642]
[1725630594272,0.92037285,56145.0,56144.0,0.1642]
[1725630594517,0.56715285,56145.0,56144.0,0.1642]
[1725630594749,0.004,56145.0,56144.0,0.342313]
[1725630594979,0.02982285,56145.0,56144.0,0.1642]
[1725630595236,0.56415285,56145.0,56144.0,0.1642]
[1725630595475,0.005,56145.0,56144.0,0.1642]
[1725630595713,0.003,56145.0,56144.0,1.054765]
[1725630596219,0.003,56145.0,56144.0,1.410991]
[1725630596447,0.003,56145.0,56144.0,0.1642]
[1725630596676,0.44425842,56164.0,56144.0,0.34231]
[1725630596900,0.534273,56151.0,56150.0,0.001636]
[1725630597128,1.27550824,56151.0,56150.0,0.001636]
[1725630597677,3.26956866,56151.0,56150.0,0.001636]
[1725630597930,2.67712466,56151.0,56150.0,0.001636]
[1725630598190,0.178176,56125.0,56116.0,0.516704]
[1725630598459,0.44425842,56138.0,56117.0,0.11677092]
[1725630598727,0.01,56148.0,56117.0,0.11677092]
[1725630598728,0.52650515,56150.0,56124.0,0.1576]
[1725630598955,0.03101265,56147.0,56124.0,0.1576]
[1725630599224,0.52650515,56150.0,56124.0,0.1576]
[1725630599225,0.178173,56125.0,56124.0,0.1576]
[1725630599493,0.356301,56133.0,56126.0,0.178169]
[1725630599730,0.03220277,56132.0,56124.0,0.1576]
[1725630600229,0.178173,56125.0,56124.0,0.1576]